[Event "*** Titled Tuesday 3|2 Blitz"]
[Site "Chess.com"]
[Date "2015.08.04"]
[Round "4"]
[White "talaicito"]
[Black "eugeniusjr"]
[Result "1-0"]
[WhiteElo "2048"]
[BlackElo "1955"]
[TimeControl "180+2"]
[EndTime "12:23:02 PDT"]
[Termination "talaicito won by resignation"]

1. e4 {[%clk 0:03:01.9]} 1... c5 {[%clk 0:03:01.1]} 2. Nf3 {[%clk 0:03:02.7]}
2... g6 {[%clk 0:03:02.6]} 3. c3 {[%clk 0:03:00.2]} 3... Bg7 {[%clk 0:03:02.9]}
4. d4 {[%clk 0:03:00.5]} 4... cxd4 {[%clk 0:03:04.8]} 5. cxd4 {[%clk 0:03:01]}
5... d5 {[%clk 0:03:05.5]} 6. exd5 {[%clk 0:03:00.1]} 6... Nf6 {[%clk
0:03:06.2]} 7. Nc3 {[%clk 0:03:00.2]} 7... Nxd5 {[%clk 0:03:06.5]} 8. Bc4 {[%clk
0:02:58.8]} 8... Nb6 {[%clk 0:03:04.6]} 9. Bb3 {[%clk 0:02:57.6]} 9... O-O
{[%clk 0:03:05.1]} 10. O-O {[%clk 0:02:57.5]} 10... Nc6 {[%clk 0:03:05.9]} 11.
d5 {[%clk 0:02:56]} 11... Na5 {[%clk 0:03:02.9]} 12. Be3 {[%clk 0:02:51.8]}
12... Bg4 {[%clk 0:02:56.4]} 13. h3 {[%clk 0:02:43.9]} 13... Bxf3 {[%clk
0:02:55.6]} 14. Qxf3 {[%clk 0:02:44.9]} 14... Nxb3 {[%clk 0:02:48.7]} 15. axb3
{[%clk 0:02:43.1]} 15... Bxc3 {[%clk 0:02:43.7]} 16. bxc3 {[%clk 0:02:43.6]}
16... Qxd5 {[%clk 0:02:41.4]} 17. Qf4 {[%clk 0:02:32.6]} 17... Qxb3 {[%clk
0:02:23.2]} 18. Bd4 {[%clk 0:02:17.9]} 18... Nd5 {[%clk 0:01:57.4]} 19. Qh6
{[%clk 0:02:04.7]} 19... f6 {[%clk 0:01:54.9]} 20. Rfb1 {[%clk 0:02:04.3]} 20...
Qc4 {[%clk 0:01:46]} 21. Rxb7 {[%clk 0:02:03.9]} 21... Qc6 {[%clk 0:01:26.7]}
22. Raxa7 {[%clk 0:01:57.6]} 22... Rxa7 {[%clk 0:01:21.8]} 23. Rxa7 {[%clk
0:01:58.6]} 23... Rb8 {[%clk 0:00:56.8]} 24. h4 {[%clk 0:01:55.9]} 24... Ra8
{[%clk 0:00:29.8]} 25. Rxa8+ {[%clk 0:01:41.4]} 25... Qxa8 {[%clk 0:00:31.7]}
26. c4 {[%clk 0:01:42.6]} 26... Qa4 {[%clk 0:00:16.7]} 27. Qc1 {[%clk
0:01:33.9]} 27... Nc7 {[%clk 0:00:10.8]} 28. h5 {[%clk 0:01:30.5]} 28... g5
{[%clk 0:00:11.1]} 29. Bb6 {[%clk 0:01:29]} 29... Ne6 {[%clk 0:00:10.7]} 30. h6
{[%clk 0:01:21.3]} 30... Kf7 {[%clk 0:00:10.5]} 31. Qb1 {[%clk 0:01:18.4]} 31...
Kg8 {[%clk 0:00:05.8]} 32. c5 {[%clk 0:01:16.9]} 32... Qc6 {[%clk 0:00:06]} 33.
Qb3 {[%clk 0:01:16.9]} 33... Kf7 {[%clk 0:00:06]} 34. Qd3 {[%clk 0:01:18]} 34...
Kg8 {[%clk 0:00:05.8]} 35. Qc4 {[%clk 0:01:18.5]} 35... Kf7 {[%clk 0:00:06.4]}
36. Qd3 {[%clk 0:01:18.1]} 36... Kg8 {[%clk 0:00:07.2]} 37. g3 {[%clk
0:01:18.8]} 37... g4 {[%clk 0:00:06.1]} 38. Qc4 {[%clk 0:01:17.3]} 38... Kf7
{[%clk 0:00:06.6]} 39. Qxg4 {[%clk 0:01:18]} 39... Ng5 {[%clk 0:00:07.7]} 40.
Qc4+ {[%clk 0:01:18.5]} 40... Kg6 {[%clk 0:00:07.2]} 41. Qd3+ {[%clk 0:01:09.4]}
41... Kxh6 {[%clk 0:00:07.8]} 42. f4 {[%clk 0:01:06.6]} 42... Nf7 {[%clk
0:00:05.5]} 43. Qe3 {[%clk 0:01:01.6]} 43... Qd7 {[%clk 0:00:04]} 44. Kf2 {[%clk
0:00:59.1]} 44... Kg7 {[%clk 0:00:04.6]} 45. Ba5 {[%clk 0:00:56.3]} 45... e5
{[%clk 0:00:04.7]} 46. Bc3 {[%clk 0:00:56.1]} 46... exf4 {[%clk 0:00:05.1]} 47.
Qxf4 {[%clk 0:00:57.2]} 47... Qe6 {[%clk 0:00:05.5]} 48. g4 {[%clk 0:00:55.3]}
48... h6 {[%clk 0:00:05]} 49. Bd4 {[%clk 0:00:53.3]} 49... Ng5 {[%clk
0:00:04.4]} 50. Qc7+ {[%clk 0:00:51.4]} 50... Kg6 {[%clk 0:00:05.5]} 51. Qf4
{[%clk 0:00:51.4]} 51... Ne4+ {[%clk 0:00:06]} 52. Kf3 {[%clk 0:00:50.6]} 52...
Ng5+ {[%clk 0:00:06.4]} 53. Kg3 {[%clk 0:00:50.1]} 53... Qc6 {[%clk 0:00:05.5]}
54. Qf5+ {[%clk 0:00:50.2]} 54... Kg7 {[%clk 0:00:05.6]} 55. Be3 {[%clk
0:00:49.5]} 55... Qc7+ {[%clk 0:00:04.2]} 56. Bf4 {[%clk 0:00:49.8]} 56... Qc6
{[%clk 0:00:04.3]} 57. Qd3 {[%clk 0:00:47.3]} 57... Ne4+ {[%clk 0:00:03]} 58.
Kh4 {[%clk 0:00:47.1]} 58... Ng5 {[%clk 0:00:02.9]} 59. Qe3 {[%clk 0:00:43.5]}
59... Qh1+ {[%clk 0:00:02.7]} 60. Kg3 {[%clk 0:00:40.7]} 60... Qh3+ {[%clk
0:00:03.7]} 61. Kf2 {[%clk 0:00:40.8]} 61... Qxe3+ {[%clk 0:00:03.8]} 62. Kxe3
{[%clk 0:00:40.8]} 62... Kf7 {[%clk 0:00:04.8]} 63. c6 {[%clk 0:00:41]} 63...
Ke6 {[%clk 0:00:05.4]} 64. c7 {[%clk 0:00:37.9]} 64... Kd7 {[%clk 0:00:06.4]}
65. Kd4 {[%clk 0:00:39]} 65... Ne6+ {[%clk 0:00:07.2]} 66. Ke4 {[%clk
0:00:38.3]} 66... Nxc7 {[%clk 0:00:06.9]} 67. Bxc7 {[%clk 0:00:37.9]} 67... Kxc7
{[%clk 0:00:08.8]} 68. Kf5 {[%clk 0:00:39.1]} 68... Kd7 {[%clk 0:00:10.3]} 69.
Kxf6 {[%clk 0:00:40.3]} 69... Ke8 {[%clk 0:00:10.6]} 70. Kg6 {[%clk 0:00:41.2]}
70... Kf8 {[%clk 0:00:11.7]} 71. Kxh6 {[%clk 0:00:41.9]} 71... Kg8 {[%clk
0:00:13]} 72. Kg6 {[%clk 0:00:43]} 72... Kf8 {[%clk 0:00:14]} 73. Kh7 {[%clk
0:00:43.3]} 73... Kf7 {[%clk 0:00:14.6]} 74. g5 {[%clk 0:00:44.5]} 74... Ke6
{[%clk 0:00:15.8]} 75. g6 {[%clk 0:00:45.6]} 1-0

[Event "*** Titled Tuesday 3|2 Blitz"]
[Site "Chess.com"]
[Date "2015.08.04"]
[Round "4"]
[White "facu57"]
[Black "VSERGUEI"]
[Result "1-0"]
[WhiteElo "2412"]
[BlackElo "2552"]
[TimeControl "180+2"]
[EndTime "12:23:49 PDT"]
[Termination "facu57 won by checkmate"]

1. e4 {[%clk 0:03:01.9]} 1... e6 {[%clk 0:02:58.5]} 2. d3 {[%clk 0:03:02.3]}
2... d5 {[%clk 0:02:58.4]} 3. Nd2 {[%clk 0:03:04.2]} 3... Nf6 {[%clk 0:02:58.7]}
4. g3 {[%clk 0:03:03.8]} 4... dxe4 {[%clk 0:02:57.6]} 5. dxe4 {[%clk 0:02:56.1]}
5... b6 {[%clk 0:02:58.6]} 6. Bg2 {[%clk 0:02:49.6]} 6... Bb7 {[%clk 0:02:58.9]}
7. Ne2 {[%clk 0:02:47.2]} 7... Nc6 {[%clk 0:02:59.1]} 8. O-O {[%clk 0:02:48.7]}
8... Qd7 {[%clk 0:02:59.5]} 9. Nc4 {[%clk 0:02:38.6]} 9... O-O-O {[%clk
0:02:49.4]} 10. Bf4 {[%clk 0:02:39]} 10... Nb4 {[%clk 0:02:33.4]} 11. c3 {[%clk
0:02:29]} 11... Nd3 {[%clk 0:02:20.1]} 12. Qc2 {[%clk 0:02:29.5]} 12... Nxe4
{[%clk 0:01:53.4]} 13. Rad1 {[%clk 0:02:18.6]} 13... Qb5 {[%clk 0:01:16.3]} 14.
Rxd3 {[%clk 0:02:03.3]} 14... Qxc4 {[%clk 0:01:15.8]} 15. Rxd8+ {[%clk
0:01:47.2]} 15... Kxd8 {[%clk 0:01:16.1]} 16. b3 {[%clk 0:01:48.1]} 16... Qc6
{[%clk 0:01:14.1]} 17. Rd1+ {[%clk 0:01:40]} 17... Kc8 {[%clk 0:01:01.5]} 18.
Nd4 {[%clk 0:01:36.4]} 18... Qd5 {[%clk 0:00:35.6]} 19. Re1 {[%clk 0:01:21.7]}
19... f5 {[%clk 0:00:34.3]} 20. f3 {[%clk 0:01:18.4]} 20... Nf6 {[%clk
0:00:20.8]} 21. Nxe6 {[%clk 0:01:19.2]} 21... Bd6 {[%clk 0:00:19.6]} 22. c4
{[%clk 0:01:19.8]} 22... Qa5 {[%clk 0:00:19.6]} 23. Bd2 {[%clk 0:01:15.7]} 23...
Bb4 {[%clk 0:00:16.9]} 24. Bxb4 {[%clk 0:01:15.2]} 24... Qxb4 {[%clk 0:00:17.5]}
25. Rd1 {[%clk 0:01:15]} 25... Kb8 {[%clk 0:00:14.8]} 26. Qxf5 {[%clk
0:01:12.5]} 26... Bc8 {[%clk 0:00:15]} 27. f4 {[%clk 0:01:09.1]} 27... Re8
{[%clk 0:00:12]} 28. Nd4 {[%clk 0:01:03.3]} 28... Re1+ {[%clk 0:00:12.4]} 29.
Kf2 {[%clk 0:01:00.8]} 29... Bxf5 {[%clk 0:00:10.6]} 30. Nc6+ {[%clk 0:00:55.4]}
30... Kc8 {[%clk 0:00:09.7]} 31. Nxa7+ {[%clk 0:00:32.4]} 31... Kb8 {[%clk
0:00:08.9]} 32. Nc6+ {[%clk 0:00:33]} 32... Ka8 {[%clk 0:00:06.2]} 33. Nxb4+
{[%clk 0:00:27.4]} 33... Re4 {[%clk 0:00:06.1]} 34. h3 {[%clk 0:00:28.6]} 34...
c5 {[%clk 0:00:06.1]} 35. Nd5 {[%clk 0:00:26.8]} 35... Bxh3 {[%clk 0:00:02.1]}
36. Nxf6 {[%clk 0:00:24.1]} 36... Bxg2 {[%clk 0:00:02.9]} 37. Nxe4 {[%clk
0:00:20.3]} 37... Bxe4 {[%clk 0:00:04.8]} 38. Rd7 {[%clk 0:00:21.9]} 38... g5
{[%clk 0:00:02.3]} 39. Ke3 {[%clk 0:00:21.9]} 39... Bb1 {[%clk 0:00:03.2]} 40.
Rd2 {[%clk 0:00:20.2]} 40... gxf4+ {[%clk 0:00:03.1]} 41. gxf4 {[%clk
0:00:22.1]} 41... Kb7 {[%clk 0:00:04.3]} 42. Rb2 {[%clk 0:00:20.9]} 42... Bf5
{[%clk 0:00:04.5]} 43. b4 {[%clk 0:00:22.4]} 43... cxb4 {[%clk 0:00:05.1]} 44.
Rxb4 {[%clk 0:00:24.3]} 44... Kc6 {[%clk 0:00:06.8]} 45. Rb5 {[%clk 0:00:25.6]}
45... Bg6 {[%clk 0:00:06.3]} 46. Rg5 {[%clk 0:00:26.3]} 46... Bb1 {[%clk
0:00:06.9]} 47. a3 {[%clk 0:00:27.4]} 47... Ba2 {[%clk 0:00:08.2]} 48. Kd4
{[%clk 0:00:28.8]} 48... Bb1 {[%clk 0:00:09.5]} 49. Rh5 {[%clk 0:00:29.8]} 49...
Bg6 {[%clk 0:00:09.8]} 50. Rh6 {[%clk 0:00:31.4]} 50... Kc7 {[%clk 0:00:09.9]}
51. Ke5 {[%clk 0:00:31.9]} 51... Bd3 {[%clk 0:00:11]} 52. f5 {[%clk 0:00:32.5]}
52... Bxc4 {[%clk 0:00:12.2]} 53. Rxh7+ {[%clk 0:00:34.1]} 53... Kd8 {[%clk
0:00:11.5]} 54. Rb7 {[%clk 0:00:34.6]} 54... b5 {[%clk 0:00:12.4]} 55. f6 {[%clk
0:00:35.6]} 55... Ke8 {[%clk 0:00:13.4]} 56. Kd6 {[%clk 0:00:36.5]} 56... Kf8
{[%clk 0:00:14]} 57. Rc7 {[%clk 0:00:37.6]} 57... Bf1 {[%clk 0:00:14.5]} 58. Ke6
{[%clk 0:00:36.9]} 58... Bc4+ {[%clk 0:00:14.7]} 59. Ke5 {[%clk 0:00:37.9]}
59... Bf1 {[%clk 0:00:15.3]} 60. Kd4 {[%clk 0:00:38.9]} 60... Be2 {[%clk
0:00:15.4]} 61. Kc5 {[%clk 0:00:40.1]} 61... Bf1 {[%clk 0:00:13.9]} 62. Rb7
{[%clk 0:00:41.1]} 62... Be2 {[%clk 0:00:13.9]} 63. Rxb5 {[%clk 0:00:42.2]}
63... Kf7 {[%clk 0:00:15]} 64. Rb6 {[%clk 0:00:42.7]} 64... Bd1 {[%clk
0:00:15.2]} 65. Kb4 {[%clk 0:00:43.2]} 65... Be2 {[%clk 0:00:15.2]} 66. a4
{[%clk 0:00:45.1]} 66... Bf1 {[%clk 0:00:15.8]} 67. a5 {[%clk 0:00:47]} 67...
Be2 {[%clk 0:00:17]} 68. Kc5 {[%clk 0:00:48.4]} 68... Bf3 {[%clk 0:00:17.4]} 69.
a6 {[%clk 0:00:49.3]} 69... Bg2 {[%clk 0:00:18.1]} 70. a7 {[%clk 0:00:50.8]}
70... Bf3 {[%clk 0:00:19.3]} 71. Kd6 {[%clk 0:00:52.2]} 71... Kxf6 {[%clk
0:00:19.6]} 72. Kc7+ {[%clk 0:00:53.8]} 72... Ke7 {[%clk 0:00:20.7]} 73. Rb7
{[%clk 0:00:55.5]} 73... Bxb7 {[%clk 0:00:17.6]} 74. Kxb7 {[%clk 0:00:57.4]}
74... Kd6 {[%clk 0:00:18.1]} 75. a8=Q {[%clk 0:00:58.4]} 75... Kc5 {[%clk
0:00:17.7]} 76. Qa6 {[%clk 0:00:59.4]} 76... Kb4 {[%clk 0:00:17.8]} 77. Qh6
{[%clk 0:01:01.3]} 77... Ka5 {[%clk 0:00:18.5]} 78. Kc6 {[%clk 0:01:03.2]} 78...
Kb4 {[%clk 0:00:19.3]} 79. Kd5 {[%clk 0:01:03.5]} 79... Kc3 {[%clk 0:00:20.1]}
80. Ke4 {[%clk 0:01:04.6]} 80... Kb4 {[%clk 0:00:20.6]} 81. Qc6 {[%clk
0:01:05.4]} 81... Kb3 {[%clk 0:00:21.2]} 82. Kd3 {[%clk 0:01:06.3]} 82... Kb4
{[%clk 0:00:22.4]} 83. Qc4+ {[%clk 0:01:06.6]} 83... Ka3 {[%clk 0:00:22.9]} 84.
Qb5 {[%clk 0:01:07.7]} 84... Ka2 {[%clk 0:00:14.7]} 85. Kc2 {[%clk 0:01:09.6]}
85... Ka3 {[%clk 0:00:15.6]} 86. Qa5# {[%clk 0:01:11.5]} 1-0

[Event "*** Titled Tuesday 3|2 Blitz"]
[Site "Chess.com"]
[Date "2015.08.04"]
[Round "4"]
[White "NMJeevanK"]
[Black "josiwales"]
[Result "1/2-1/2"]
[WhiteElo "2077"]
[BlackElo "2061"]
[TimeControl "180+2"]
[EndTime "12:24:34 PDT"]
[Termination "Game drawn by stalemate"]

1. e4 {[%clk 0:03:01.9]} 1... c5 {[%clk 0:02:50]} 2. Nf3 {[%clk 0:03:02.7]} 2...
Nc6 {[%clk 0:02:49.4]} 3. d4 {[%clk 0:03:03.7]} 3... cxd4 {[%clk 0:02:51.1]} 4.
Nxd4 {[%clk 0:03:05.6]} 4... g6 {[%clk 0:02:42.8]} 5. Nc3 {[%clk 0:03:05.8]}
5... Bg7 {[%clk 0:02:43.9]} 6. Be3 {[%clk 0:03:06.9]} 6... Nf6 {[%clk
0:02:45.1]} 7. Bc4 {[%clk 0:03:07.5]} 7... O-O {[%clk 0:02:46.2]} 8. Bb3 {[%clk
0:03:08.8]} 8... d6 {[%clk 0:02:46.2]} 9. h3 {[%clk 0:03:04.9]} 9... Bd7 {[%clk
0:02:46.5]} 10. O-O {[%clk 0:03:05.8]} 10... Na5 {[%clk 0:02:43.7]} 11. Kh1
{[%clk 0:03:01.3]} 11... Nxb3 {[%clk 0:02:44.1]} 12. axb3 {[%clk 0:03:01.8]}
12... a6 {[%clk 0:02:34.5]} 13. f4 {[%clk 0:03:01.5]} 13... b5 {[%clk
0:02:33.8]} 14. b4 {[%clk 0:02:58.4]} 14... Bc8 {[%clk 0:02:27.8]} 15. e5 {[%clk
0:02:46.7]} 15... dxe5 {[%clk 0:02:26.1]} 16. fxe5 {[%clk 0:02:47.8]} 16... Nh5
{[%clk 0:02:24.6]} 17. Qf3 {[%clk 0:02:31.8]} 17... Rb8 {[%clk 0:02:03.2]} 18.
Nc6 {[%clk 0:02:15.5]} 18... Qc7 {[%clk 0:01:51.9]} 19. Nxb8 {[%clk 0:02:14.3]}
19... Qxb8 {[%clk 0:01:51.8]} 20. Nd5 {[%clk 0:01:24.9]} 20... Bb7 {[%clk
0:01:49.1]} 21. Nxe7+ {[%clk 0:01:21.7]} 21... Kh8 {[%clk 0:01:48.6]} 22. Qg4
{[%clk 0:01:15.5]} 22... Qxe5 {[%clk 0:01:47.8]} 23. Bc5 {[%clk 0:01:09.5]}
23... Ng3+ {[%clk 0:01:42.8]} 24. Kg1 {[%clk 0:01:10.6]} 24... Ne2+ {[%clk
0:01:24.9]} 25. Kh1 {[%clk 0:01:09.1]} 25... f5 {[%clk 0:01:08.5]} 26. Qh4
{[%clk 0:00:56.5]} 26... Ng3+ {[%clk 0:00:27.1]} 27. Kg1 {[%clk 0:00:54.7]}
27... Ne2+ {[%clk 0:00:22.3]} 28. Kf2 {[%clk 0:00:52.5]} 28... Rf6 {[%clk
0:00:10.6]} 29. Rae1 {[%clk 0:00:46.8]} 29... Qf4+ {[%clk 0:00:07.8]} 30. Qxf4
{[%clk 0:00:46.4]} 30... Nxf4 {[%clk 0:00:09.7]} 31. g3 {[%clk 0:00:42.1]} 31...
Nxh3+ {[%clk 0:00:09.6]} 32. Ke2 {[%clk 0:00:36.4]} 32... Be4 {[%clk 0:00:08.7]}
33. c3 {[%clk 0:00:35.3]} 33... Ng5 {[%clk 0:00:08.5]} 34. Nc8 {[%clk
0:00:33.6]} 34... Rc6 {[%clk 0:00:08]} 35. Nd6 {[%clk 0:00:34.2]} 35... Be5
{[%clk 0:00:06.9]} 36. Rd1 {[%clk 0:00:33.7]} 36... Bxg3 {[%clk 0:00:03.9]} 37.
Rg1 {[%clk 0:00:31.4]} 37... Bxd6 {[%clk 0:00:03.5]} 38. Rxd6 {[%clk 0:00:28.2]}
38... Rxd6 {[%clk 0:00:03.6]} 39. Bxd6 {[%clk 0:00:29.8]} 39... Ne6 {[%clk
0:00:04.9]} 40. Ra1 {[%clk 0:00:30.1]} 40... Kg8 {[%clk 0:00:06.8]} 41. Rxa6
{[%clk 0:00:29.4]} 41... Bd5 {[%clk 0:00:08.7]} 42. Be5 {[%clk 0:00:26.5]} 42...
Kf7 {[%clk 0:00:10.6]} 43. Ra7+ {[%clk 0:00:26]} 43... Ke8 {[%clk 0:00:10.8]}
44. Rxh7 {[%clk 0:00:26.5]} 44... Bc4+ {[%clk 0:00:11.5]} 45. Ke3 {[%clk
0:00:27.1]} 45... g5 {[%clk 0:00:11.7]} 46. Bf6 {[%clk 0:00:23.7]} 46... g4
{[%clk 0:00:11.9]} 47. Rh5 {[%clk 0:00:21.6]} 47... f4+ {[%clk 0:00:10]} 48. Kf2
{[%clk 0:00:17.6]} 48... Kf7 {[%clk 0:00:10.4]} 49. Be5 {[%clk 0:00:16.1]} 49...
g3+ {[%clk 0:00:10.5]} 50. Kg1 {[%clk 0:00:11.2]} 50... Kg6 {[%clk 0:00:10.7]}
51. Rh8 {[%clk 0:00:11.8]} 51... Kf5 {[%clk 0:00:10.4]} 52. Bd6 {[%clk
0:00:09.6]} 52... Ke4 {[%clk 0:00:09.8]} 53. Rh4 {[%clk 0:00:10.3]} 53... Kf3
{[%clk 0:00:07.3]} 54. Bc5 {[%clk 0:00:09]} 54... Ng5 {[%clk 0:00:07]} 55. Rh8
{[%clk 0:00:08.9]} 55... Kg4 {[%clk 0:00:06]} 56. Rg8 {[%clk 0:00:08.3]} 56...
f3 {[%clk 0:00:06.8]} 57. Rf8 {[%clk 0:00:06.1]} 57... Nh3+ {[%clk 0:00:06.4]}
58. Kh1 {[%clk 0:00:07.6]} 58... f2 {[%clk 0:00:06.4]} 59. Bxf2 {[%clk
0:00:06.4]} 59... gxf2 {[%clk 0:00:06.6]} 60. Kg2 {[%clk 0:00:07.8]} 60... f1=Q+
{[%clk 0:00:03.9]} 61. Rxf1 {[%clk 0:00:08.2]} 61... Bxf1+ {[%clk 0:00:05.8]}
62. Kxf1 {[%clk 0:00:10.1]} 62... Kf4 {[%clk 0:00:07.7]} 63. Ke2 {[%clk
0:00:11.3]} 63... Ke4 {[%clk 0:00:09.6]} 64. Kd2 {[%clk 0:00:12.7]} 64... Nf4
{[%clk 0:00:10.9]} 65. b3 {[%clk 0:00:13]} 65... Kd5 {[%clk 0:00:11.5]} 66. Ke3
{[%clk 0:00:13.6]} 66... Ne6 {[%clk 0:00:13]} 67. Kd3 {[%clk 0:00:14.6]} 67...
Nf4+ {[%clk 0:00:12.4]} 68. Ke3 {[%clk 0:00:16]} 68... Ne6 {[%clk 0:00:11.5]}
69. Kd3 {[%clk 0:00:13.6]} 69... Ke5 {[%clk 0:00:11.8]} 70. c4 {[%clk
0:00:14.3]} 70... bxc4+ {[%clk 0:00:11.4]} 71. bxc4 {[%clk 0:00:15.5]} 71... Kd6
{[%clk 0:00:13.3]} 72. Ke4 {[%clk 0:00:15.8]} 72... Kc6 {[%clk 0:00:14.5]} 73.
Ke5 {[%clk 0:00:16.8]} 73... Nc7 {[%clk 0:00:15.6]} 74. Kd4 {[%clk 0:00:18.2]}
74... Kb6 {[%clk 0:00:16.5]} 75. Ke5 {[%clk 0:00:16.5]} 75... Kc6 {[%clk
0:00:17.7]} 76. Kd4 {[%clk 0:00:16]} 76... Nb5+ {[%clk 0:00:18.1]} 77. Kd3
{[%clk 0:00:11.6]} 77... Nd6 {[%clk 0:00:17.8]} 78. c5 {[%clk 0:00:12.6]} 78...
Nb7 {[%clk 0:00:17.8]} 79. Kc4 {[%clk 0:00:14.5]} 79... Nxc5 {[%clk 0:00:18.1]}
80. bxc5 {[%clk 0:00:16.4]} 80... Kc7 {[%clk 0:00:19.2]} 81. Kd5 {[%clk
0:00:18.3]} 81... Kd7 {[%clk 0:00:19.3]} 82. c6+ {[%clk 0:00:20]} 82... Kc7
{[%clk 0:00:20.1]} 83. Kc5 {[%clk 0:00:21.9]} 83... Kc8 {[%clk 0:00:21.1]} 84.
Kb5 {[%clk 0:00:23.6]} 84... Kc7 {[%clk 0:00:21.7]} 85. Kc5 {[%clk 0:00:25.3]}
85... Kc8 {[%clk 0:00:23.1]} 86. Kd6 {[%clk 0:00:27.2]} 86... Kd8 {[%clk
0:00:23.5]} 87. c7+ {[%clk 0:00:29.1]} 87... Kc8 {[%clk 0:00:24.5]} 88. Kc6
{[%clk 0:00:31]} 1/2-1/2

[Event "*** Titled Tuesday 3|2 Blitz"]
[Site "Chess.com"]
[Date "2015.08.04"]
[Round "4"]
[White "pKiLz5Rn9b"]
[Black "stepanosinovsky"]
[Result "1-0"]
[WhiteElo "2401"]
[BlackElo "2259"]
[TimeControl "180+2"]
[EndTime "12:24:47 PDT"]
[Termination "pKiLz5Rn9b won by resignation"]

1. e4 {[%clk 0:03:01.9]} 1... e5 {[%clk 0:02:59.3]} 2. Nf3 {[%clk 0:03:02.9]}
2... Nc6 {[%clk 0:03:00.3]} 3. Bc4 {[%clk 0:03:04.2]} 3... Nf6 {[%clk
0:03:00.8]} 4. d3 {[%clk 0:03:05.4]} 4... Be7 {[%clk 0:03:01.2]} 5. O-O {[%clk
0:03:05.7]} 5... d5 {[%clk 0:03:02.3]} 6. exd5 {[%clk 0:03:02.5]} 6... Nxd5
{[%clk 0:03:04.2]} 7. Re1 {[%clk 0:03:01.5]} 7... Bg4 {[%clk 0:03:05.5]} 8. h3
{[%clk 0:02:55.9]} 8... Bh5 {[%clk 0:03:05.1]} 9. Nbd2 {[%clk 0:02:57.1]} 9...
O-O {[%clk 0:03:01.8]} 10. Ne4 {[%clk 0:02:57.8]} 10... f6 {[%clk 0:02:04.5]}
11. Nc3 {[%clk 0:02:44]} 11... Bf7 {[%clk 0:02:01.4]} 12. Nxd5 {[%clk
0:02:45.4]} 12... Bxd5 {[%clk 0:02:00.9]} 13. Bxd5+ {[%clk 0:02:47.1]} 13...
Qxd5 {[%clk 0:02:02.4]} 14. Qe2 {[%clk 0:02:48.8]} 14... Rad8 {[%clk 0:01:57.5]}
15. Be3 {[%clk 0:02:49.7]} 15... Bc5 {[%clk 0:01:52.6]} 16. a3 {[%clk
0:02:39.4]} 16... Nd4 {[%clk 0:01:45.3]} 17. Bxd4 {[%clk 0:02:35.7]} 17... Bxd4
{[%clk 0:01:44.3]} 18. Nxd4 {[%clk 0:02:35.8]} 18... Qxd4 {[%clk 0:01:43.7]} 19.
Rab1 {[%clk 0:02:36.8]} 19... a5 {[%clk 0:01:41.2]} 20. Qe3 {[%clk 0:02:32.1]}
20... b6 {[%clk 0:01:41.8]} 21. Qxd4 {[%clk 0:02:30.3]} 21... Rxd4 {[%clk
0:01:42.4]} 22. Kf1 {[%clk 0:02:27.6]} 22... Rfd8 {[%clk 0:01:43.5]} 23. f3
{[%clk 0:02:24]} 23... c5 {[%clk 0:01:42.2]} 24. Ke2 {[%clk 0:02:15.5]} 24...
Kf7 {[%clk 0:01:34.7]} 25. b3 {[%clk 0:02:10.6]} 25... R8d6 {[%clk 0:01:32.5]}
26. a4 {[%clk 0:02:10.3]} 26... h5 {[%clk 0:01:32.1]} 27. Red1 {[%clk
0:02:10.1]} 27... h4 {[%clk 0:01:31.8]} 28. Rd2 {[%clk 0:02:07.5]} 28... g5
{[%clk 0:01:31.2]} 29. Re1 {[%clk 0:02:07.7]} 29... Kg6 {[%clk 0:01:31.5]} 30.
Kd1 {[%clk 0:02:08.1]} 30... Rd8 {[%clk 0:01:26.9]} 31. Rde2 {[%clk 0:02:09.4]}
31... Kf5 {[%clk 0:01:23]} 32. Kc1 {[%clk 0:02:08.2]} 32... R8d7 {[%clk
0:01:22]} 33. Kd2 {[%clk 0:01:48.5]} 33... Kf4 {[%clk 0:00:58.5]} 34. Rf2 {[%clk
0:01:21]} 34... Kg3 {[%clk 0:00:57]} 35. Ke2 {[%clk 0:01:18.3]} 35... R7d6
{[%clk 0:00:41.5]} 36. Kf1 {[%clk 0:01:18.1]} 36... Kf4 {[%clk 0:00:39.2]} 37.
Rfe2 {[%clk 0:01:18.6]} 37... R6d5 {[%clk 0:00:35.5]} 38. Kf2 {[%clk 0:01:18]}
38... Rd6 {[%clk 0:00:36.6]} 39. Re4+ {[%clk 0:01:15.9]} 39... Kf5 {[%clk
0:00:37.8]} 40. Ke3 {[%clk 0:01:13.7]} 40... Rd7 {[%clk 0:00:32.6]} 41. Kd2
{[%clk 0:01:13.3]} 41... R7d6 {[%clk 0:00:31.6]} 42. Kc3 {[%clk 0:01:13.1]}
42... Ke6 {[%clk 0:00:30.4]} 43. Rxd4 {[%clk 0:00:54.4]} 43... Rxd4 {[%clk
0:00:30.9]} 44. Re4 {[%clk 0:00:53.6]} 44... Kd5 {[%clk 0:00:30.9]} 45. Kd2
{[%clk 0:00:48.7]} 45... f5 {[%clk 0:00:27.4]} 46. Re3 {[%clk 0:00:38.1]} 46...
Ke6 {[%clk 0:00:27.3]} 47. Re1 {[%clk 0:00:36.3]} 47... Kf6 {[%clk 0:00:27.4]}
48. Ke3 {[%clk 0:00:35.8]} 48... Rb4 {[%clk 0:00:26.3]} 49. Rd1 {[%clk
0:00:36.3]} 49... Ke6 {[%clk 0:00:22.3]} 50. Rb1 {[%clk 0:00:37.5]} 50... Rd4
{[%clk 0:00:20.5]} 51. c3 {[%clk 0:00:29.5]} 51... Rf4 {[%clk 0:00:21.3]} 52.
Rd1 {[%clk 0:00:30.8]} 52... Kd5 {[%clk 0:00:19.5]} 53. Rd2 {[%clk 0:00:31.8]}
53... Ke6 {[%clk 0:00:18.8]} 54. Rd1 {[%clk 0:00:29.5]} 54... Kd5 {[%clk
0:00:19.2]} 55. Rg1 {[%clk 0:00:29.5]} 55... Ke6 {[%clk 0:00:19.4]} 56. Rd1
{[%clk 0:00:24.7]} 56... Kd5 {[%clk 0:00:20.1]} 57. Re1 {[%clk 0:00:26.4]} 57...
Ke6 {[%clk 0:00:20.9]} 58. Rg1 {[%clk 0:00:27.8]} 58... Kf6 {[%clk 0:00:21.3]}
59. Rd1 {[%clk 0:00:27.4]} 59... g4 {[%clk 0:00:22.3]} 60. hxg4 {[%clk
0:00:18.7]} 60... fxg4 {[%clk 0:00:22.8]} 61. fxg4 {[%clk 0:00:20.3]} 61... Rxg4
{[%clk 0:00:23.9]} 62. Rf1+ {[%clk 0:00:21.6]} 62... Kg5 {[%clk 0:00:24.7]} 63.
Rf8 {[%clk 0:00:22.6]} 63... Rg3+ {[%clk 0:00:22.8]} 64. Ke4 {[%clk 0:00:24.1]}
64... Kh6 {[%clk 0:00:14.2]} 65. Rh8+ {[%clk 0:00:23.5]} 65... Kg7 {[%clk
0:00:15]} 66. Rxh4 {[%clk 0:00:24.8]} 66... Rxg2 {[%clk 0:00:16.3]} 67. Kxe5
{[%clk 0:00:24.6]} 67... Rb2 {[%clk 0:00:17.4]} 68. b4 {[%clk 0:00:24.2]} 68...
cxb4 {[%clk 0:00:17.2]} 69. cxb4 {[%clk 0:00:25.6]} 69... axb4 {[%clk
0:00:18.1]} 70. Kd5 {[%clk 0:00:27.2]} 70... Rb1 {[%clk 0:00:16.2]} 71. Kc6
{[%clk 0:00:26.4]} 71... b3 {[%clk 0:00:14.9]} 72. Rb4 {[%clk 0:00:24.9]} 72...
Kf6 {[%clk 0:00:11.2]} 73. Kxb6 {[%clk 0:00:23.5]} 73... Ke6 {[%clk 0:00:12.2]}
74. a5 {[%clk 0:00:24.9]} 74... Kd6 {[%clk 0:00:11.9]} 75. a6 {[%clk 0:00:25.3]}
75... b2 {[%clk 0:00:12]} 76. a7 {[%clk 0:00:26.1]} 76... Ra1 {[%clk 0:00:06.8]}
77. Rxb2 {[%clk 0:00:26.5]} 77... Kd5 {[%clk 0:00:07.5]} 78. Rb5+ {[%clk
0:00:27.7]} 78... Kd6 {[%clk 0:00:08.8]} 79. Ra5 {[%clk 0:00:25.4]} 79... Rb1+
{[%clk 0:00:10]} 80. Ka6 {[%clk 0:00:26.6]} 80... Kc7 {[%clk 0:00:08.4]} 81.
a8=Q {[%clk 0:00:16.8]} 81... Rb6+ {[%clk 0:00:08.9]} 82. Ka7 {[%clk 0:00:18.4]}
82... Rd6 {[%clk 0:00:08.4]} 83. Rc5+ {[%clk 0:00:19.2]} 83... Kd7 {[%clk
0:00:09.7]} 84. Qc8+ {[%clk 0:00:20.6]} 84... Ke7 {[%clk 0:00:11.6]} 85. Re5+
{[%clk 0:00:22]} 85... Kf7 {[%clk 0:00:12]} 86. Qe8+ {[%clk 0:00:21.9]} 86...
Kf6 {[%clk 0:00:13]} 87. Qe7+ {[%clk 0:00:23.2]} 1-0